bitfinex-derivatives/quotes_SOLF0:USTF0_20241231
["timestamp","ask_amount","ask_price","bid_price","bid_amount"]
[1735622144387,2.6511,188.91,188.9,7.78218834]
[1735622147694,7.78218834,188.92,188.86,7.78218834]
[1735622147988,7.78218834,188.92,188.85,7.78218834]
[1735622148993,2.6512,188.9,188.85,7.78218834]
[1735622149190,7.78218834,188.9,188.82,3.77529129]
[1735622149384,7.78218834,188.9,188.83,7.78218834]
[1735622149590,7.78218834,188.9,188.8,2.6526]
[1735622149790,7.78218834,188.9,188.82,10.43448834]
[1735622149990,7.78218834,188.9,188.84,7.78218834]
[1735622150194,2.6514,188.89,188.84,7.78218834]
[1735622150596,7.78218834,188.9,188.84,7.78218834]
[1735622150798,2.6515,188.88,188.84,7.78218834]
[1735622151595,2.6515,188.88,188.82,2.6523]
[1735622151793,2.6517,188.87,188.82,10.43448834]
[1735622152294,2.6517,188.87,188.82,7.78218834]
[1735622153790,3.0,188.88,188.81,2.6525]
[1735622153988,10.78218834,188.88,188.81,7.78218834]
[1735622155493,10.78218834,188.88,188.76,3.0]
[1735622155797,10.78218834,188.88,188.81,7.78218834]
[1735622156197,10.78218834,188.88,188.81,10.43468834]
[1735622156703,10.78218834,188.88,188.81,2.6525]
[1735622156898,10.78218834,188.88,188.8,7.78218834]
[1735622157799,7.78218834,188.86,188.8,7.78218834]
[1735622158102,7.78218834,188.86,188.79,2.6527]
[1735622158502,7.78218834,188.86,188.8,7.78218834]
[1735622159405,7.78218834,188.86,188.81,2.6524]
[1735622160108,7.78218834,188.86,188.81,2.61879101]
[1735622160602,7.78218834,188.86,188.78,2.6529]
[1735622160808,7.78218834,188.84,188.78,2.6529]
[1735622161007,2.6523,188.83,188.77,7.78218834]
[1735622161205,2.6523,188.83,188.77,10.43518834]
[1735622161809,3.0,188.83,188.75,1.5172]
[1735622162009,7.78218834,188.8,188.7,3.2344]
[1735622162209,7.78218834,188.8,188.72,7.78218834]
[1735622162507,2.6532,188.76,188.72,7.78218834]
[1735622162708,2.6532,188.76,188.67,1.5331]
[1735622162709,7.78218834,188.76,188.67,1.5331]
[1735622162911,7.78218834,188.76,188.69,7.78218834]
[1735622163506,7.78218834,188.74,188.67,9.31528834]
[1735622164215,7.78218834,188.72,188.65,7.78218834]
[1735622164510,3.0,188.73,188.65,7.78218834]
[1735622164717,2.6542,188.69,188.64,7.78218834]
[1735622165104,7.78218834,188.69,188.62,7.78218834]
[1735622165309,7.78218834,188.67,188.6,7.78218834]
[1735622165502,7.78218834,188.67,188.58,7.78218834]
[1735622165503,7.78218834,188.65,188.58,7.78218834]
[1735622166312,10.78218834,188.67,188.58,7.78218834]
[1735622167113,10.78218834,188.67,188.6,7.78218834]
[1735622167313,10.78218834,188.67,188.62,7.78218834]
[1735622167314,3.0,188.67,188.62,7.78218834]
[1735622167608,7.78218834,188.69,188.62,7.78218834]
[1735622167609,3.0,188.69,188.62,7.78218834]
[1735622167815,3.0,188.69,188.62,10.43728834]
[1735622168210,7.78218834,188.68,188.59,3.0]
[1735622168519,7.78218834,188.68,188.6,7.78218834]
[1735622169212,2.6545,188.67,188.6,10.43758834]
[1735622169914,7.78218834,188.66,188.6,10.43758834]
[1735622171312,2.655,188.63,188.58,7.78218834]
[1735622171511,7.78218834,188.66,188.58,7.78218834]
[1735622172017,2.6552,188.62,188.58,7.78218834]
[1735622172715,2.6552,188.62,188.56,7.78218834]
[1735622172918,10.78218834,188.64,188.28,38.99830817]
[1735622172919,7.78218834,188.57,188.35,101.81773256]
[1735622173215,55.18,188.66,188.41,3.1619]
[1735622173216,7.78218834,188.54,188.41,3.1619]
[1735622173417,3.0,188.53,188.45,7.78218834]
[1735622174017,2.6569,188.5,188.45,7.78218834]
[1735622174221,3.0,188.53,188.45,7.78218834]
[1735622174718,3.0,188.53,188.45,10.43968834]
[1735622174719,5.6565,188.53,188.45,10.43968834]
[1735622176314,5.6565,188.53,188.45,2.6575]
[1735622177517,5.6565,188.53,188.44,12.18186399]
[1735622177518,3.0,188.53,188.44,12.18186399]
[1735622178323,3.0,188.53,188.47,2.6571]
[1735622178619,3.0,188.53,188.44,12.18186399]
[1735622178823,3.0,188.53,188.46,2.6573]
[1735622179023,3.0,188.53,188.44,12.18186399]
[1735622179418,2.6563,188.54,188.48,2.6571]
[1735622179621,5.6563,188.54,188.48,2.6571]
[1735622179816,2.6563,188.54,188.48,2.6571]
[1735622180122,12.18186399,188.6,188.47,12.18186399]
[1735622180330,3.0,188.59,188.47,12.18186399]
[1735622180625,3.0,188.59,188.49,2.6569]
[1735622180818,4.5985,188.59,188.49,2.6569]
[1735622181016,4.5985,188.59,188.45,3.0]
[1735622181424,2.6561,188.56,188.49,2.657]
[1735622181625,4.5985,188.59,188.49,2.657]
[1735622181823,12.18186399,188.57,188.45,3.0]
[1735622182222,2.6565,188.53,188.47,2.6572]
[1735622182427,5.6565,188.53,188.47,2.6572]
[1735622183123,3.0,188.53,188.45,2.6575]
[1735622184426,2.6567,188.51,188.45,2.6575]
[1735622184625,12.18186399,188.51,188.41,4.2774]
[1735622185022,2.6574,188.47,188.35,3.0]
[1735622185225,3.0,188.46,188.35,3.0]
[1735622185427,3.0,188.46,188.36,12.18186399]
[1735622185630,3.0,188.46,188.4,2.6581]
[1735622186226,12.18186399,188.42,188.18,145.76968006]
[1735622186426,12.18186399,188.34,188.23,0.97737904]
[1735622186625,3.0,188.33,188.23,0.97737904]
[1735622186832,5.6593,188.33,188.23,0.97737904]
[1735622187131,3.0,188.33,188.2,35.97567868]
[1735622187322,3.0,188.33,188.2,23.79381469]
[1735622187526,12.18186399,188.34,188.2,23.79381469]
[1735622187722,3.02,188.33,188.2,23.79381469]
[1735622187927,3.02,188.33,188.21,12.18186399]
[1735622188427,2.6596,188.31,188.21,12.18186399]
[1735622188926,2.659,188.35,188.21,12.18186399]
[1735622189131,3.02,188.31,188.22,0.97757086]
[1735622189332,3.02,188.33,188.21,12.18186399]
[1735622189724,5.6793,188.33,188.26,2.6602]
[1735622189926,3.02,188.33,188.21,12.18186399]
[1735622190125,3.02,188.33,188.24,12.18186399]
[1735622190332,14.84056399,188.37,188.3,2.6596]
[1735622190527,3.02,188.36,188.3,2.6596]
[1735622191227,5.6788,188.36,188.3,2.6596]
[1735622191431,12.18186399,188.37,188.25,12.18186399]
[1735622191631,3.02,188.36,188.25,12.18186399]
[1735622192032,3.02,188.36,188.28,2.6599]
[1735622192234,3.02,188.38,188.25,12.18186399]
[1735622192435,3.02,188.38,188.26,1.6151]
[1735622192831,3.02,188.38,188.33,2.6592]
[1735622195029,3.1677,188.41,188.28,15.20186399]
[1735622195234,3.02,188.42,188.31,12.18186399]
[1735622196331,3.02,188.42,188.35,2.6589]
[1735622196630,3.02,188.44,188.34,12.18186399]
[1735622196836,2.96331235,188.45,188.34,12.18186399]
[1735622197335,2.6577,188.44,188.38,2.6585]
[1735622197533,2.6577,188.44,188.34,12.18186399]
[1735622197931,3.02,188.44,188.34,12.18186399]
[1735622198133,3.02,188.44,188.36,2.6588]
[1735622199434,2.658,188.42,188.36,2.6588]
[1735622200327,3.02,188.44,188.34,14.84086399]
[1735622200533,3.02,188.44,188.31,12.18186399]
[1735622200735,1.5558,188.43,188.31,12.18186399]
[1735622201035,2.6586,188.38,188.32,2.6593]
[1735622201637,3.02,188.39,188.34,2.659]
[1735622202337,3.02,188.39,188.33,2.6592]
[1735622203436,2.6586,188.38,188.33,2.6592]
[1735622204844,3.02,188.39,188.33,2.6592]
[1735622205736,5.6784,188.39,188.33,2.6592]
[1735622205943,5.6784,188.39,188.34,2.6591]
[1735622206543,2.6584,188.39,188.34,2.6591]
[1735622206738,5.7984,188.39,188.34,2.6591]
[1735622208043,3.14,188.39,188.32,2.6594]
[1735622208242,3.14,188.39,188.28,12.18186399]
[1735622208547,3.14,188.39,188.3,2.6595]
[1735622208950,1.5963,188.38,188.3,2.6595]
[1735622209248,2.6591,188.34,188.29,2.6598]
[1735622209449,3.14,188.33,188.29,2.6598]
[1735622210948,2.6595,188.32,188.27,2.66]
[1735622211155,3.14,188.33,188.22,12.18186399]
[1735622211649,3.14,188.33,188.21,45.50239593]
[1735622211846,1.4754,188.32,188.21,45.50239593]
[1735622212646,2.6598,188.3,188.25,2.6602]
[1735622212849,1.4754,188.32,188.25,2.6602]
[1735622213251,2.66,188.28,188.23,2.6606]
[1735622213446,5.8,188.28,188.23,2.6606]
[1735622214549,3.14,188.28,188.2,23.79381469]
[1735622214953,3.14,188.28,188.24,2.6605]
[1735622215349,5.8,188.28,188.24,2.6605]
[1735622215853,3.14,188.28,188.24,2.6605]
[1735622216755,5.8001,188.28,188.23,2.6606]
[1735622217250,3.14,188.28,188.2,23.79381469]
[1735622218048,3.14,188.28,188.22,2.6607]
[1735622218253,3.14,188.28,188.2,23.79381469]
[1735622218548,3.14,188.28,188.24,2.6604]
[1735622218745,3.14,188.28,188.2,23.79381469]
[1735622219352,3.14,188.28,188.22,2.6607]
[1735622219553,3.14,188.28,188.2,23.79381469]
[1735622220655,2.6602,188.27,188.2,23.79381469]
[1735622221453,3.14,188.28,188.22,2.6608]
[1735622221654,3.14,188.28,188.2,23.79381469]
[1735622222155,3.14,188.27,188.2,26.45481469]
[1735622223451,2.6604,188.25,188.2,26.45481469]
[1735622224146,2.6604,188.25,188.2,23.79381469]
[1735622224350,1.486,188.3,188.2,23.79381469]
[1735622224662,3.14,188.29,188.2,23.79381469]
[1735622225148,2.6605,188.25,188.2,23.79381469]
[1735622225345,3.14,188.24,188.2,23.79381469]
[1735622228754,3.14,188.24,188.21,2.6608]
[1735622229056,12.18186399,188.27,188.21,2.6608]
[1735622229253,3.14,188.26,188.21,2.6608]
[1735622231161,5.8003,188.26,188.21,2.6608]
[1735622231654,12.18186399,188.27,188.24,2.6605]
[1735622231956,3.14,188.28,188.24,2.6605]
[1735622232152,3.14,188.28,188.2,23.79381469]
[1735622232348,7.81803928,188.27,188.22,2.6608]
[1735622233862,10.47813928,188.27,188.22,2.6608]
[1735622234255,10.95803928,188.27,188.21,2.6609]
[1735622234458,2.6604,188.25,188.2,23.79381469]
[1735622234761,7.81803928,188.25,188.2,23.79381469]
[1735622234956,2.6605,188.24,188.2,23.79381469]
[1735622235162,7.81803928,188.25,188.2,23.79381469]
[1735622236561,7.81803928,188.22,188.2,12.16981469]
[1735622236862,5.7609,188.21,188.2,12.16981469]
[1735622237053,2.6609,188.21,188.2,12.16981469]
[1735622237258,3.1,188.21,188.2,12.16981469]
[1735622238665,2.6608,188.22,188.2,12.16981469]
[1735622238864,3.1,188.23,188.2,12.16981469]
[1735622239063,12.2228049,188.22,188.2,12.16981469]
[1735622239259,3.1,188.21,188.2,12.16981469]
[1735622240264,5.7609,188.21,188.2,12.16981469]
[1735622240569,5.7609,188.21,188.2,9.71721469]
[1735622241258,3.1,188.21,188.01,58.22146255]
[1735622241462,12.2228049,188.16,188.03,15.3638049]
[1735622241765,5.7619,188.15,188.08,2.6627]
[1735622242059,3.1,188.16,188.03,20.0848049]
[1735622242261,3.1,188.16,188.06,12.2228049]
[1735622242461,5.7617,188.16,188.06,12.2228049]
[1735622242864,3.1,188.16,188.06,12.2228049]
[1735622243061,12.2228049,188.19,188.06,12.2228049]
[1735622243265,3.1,188.18,188.06,12.2228049]
[1735622243467,2.6619,188.14,188.06,12.2228049]
[1735622243766,3.1,188.18,188.06,12.2228049]
[1735622243973,12.2228049,188.19,188.06,12.2228049]
[1735622244268,12.2228049,188.22,188.09,12.2228049]
[1735622244468,15.3228049,188.22,188.1,3.1]
[1735622244668,15.3228049,188.22,188.1,4.6852]
[1735622244868,17.9836049,188.22,188.17,2.6615]
[1735622245070,3.1,188.22,188.12,12.2228049]
[1735622246365,2.6612,188.2,188.15,2.6618]
[1735622246565,15.3228049,188.22,188.11,3.1669]
[1735622246869,2.6615,188.17,188.12,2.6621]
[1735622247764,2.6613,188.19,188.13,2.662]
[1735622247969,15.3228049,188.22,188.13,2.662]
[1735622248170,2.6613,188.19,188.11,3.1669]
[1735622248470,15.3228049,188.22,188.11,3.1669]
[1735622249370,2.6611,188.2,188.16,2.6616]
[1735622249678,3.1,188.23,188.12,12.2228049]
[1735622249863,2.6605,188.25,188.21,2.6609]
[1735622250065,5.7605,188.25,188.21,2.6609]
[1735622250278,5.7605,188.25,188.15,15.3228049]
[1735622250463,3.1,188.25,188.15,15.3228049]
[1735622250667,2.6605,188.24,188.19,2.661]
[1735622250868,31.7634277,188.26,188.15,15.3228049]
[1735622251170,2.6603,188.25,188.15,15.3228049]
[1735622251365,28.6634277,188.26,188.15,15.3228049]
[1735622251767,31.3237277,188.26,188.21,2.6609]
[1735622252173,28.6634277,188.26,188.15,15.3228049]
[1735622252772,2.6604,188.25,188.21,2.6609]
[1735622253170,2.6605,188.24,188.19,2.6611]
[1735622253370,2.6605,188.24,188.15,15.3228049]
[1735622253974,2.6606,188.23,188.15,15.3228049]
[1735622254168,15.3228049,188.27,188.15,15.3228049]
[1735622254675,2.6602,188.26,188.15,15.3228049]
[1735622255671,2.6602,188.26,188.21,2.6609]
[1735622258674,2.6602,188.26,188.22,2.6608]
[1735622258874,15.3228049,188.27,188.15,15.3228049]
[1735622259964,17.9829049,188.27,188.23,2.6606]
[1735622261274,14.8829049,188.27,188.23,2.6606]
[1735622261479,2.6601,188.27,188.23,2.6606]
[1735622261679,2.66,188.28,188.23,2.6606]
[1735622262271,5.7598,188.29,188.24,2.6604]
[1735622262877,5.7598,188.29,188.15,15.3228049]
[1735622263068,5.7598,188.29,188.25,2.6603]
[1735622263375,3.1,188.29,188.18,12.2228049]
[1735622263578,12.2228049,188.3,188.22,2.6607]
[1735622263877,12.2228049,188.3,188.19,4.5621]
[1735622263878,3.1,188.31,188.2,3.1]
[1735622264272,12.2228049,188.33,188.2,3.1]
[1735622264478,28.6634277,188.37,188.21,12.2228049]
[1735622264676,12.2228049,188.34,188.21,12.2228049]
[1735622265289,2.6594,188.32,188.27,2.6599]
[1735622265674,2.6594,188.32,188.21,12.2228049]
[1735622267479,5.7593,188.33,188.21,12.2228049]
[1735622267678,3.1,188.33,188.21,12.2228049]
[1735622268081,2.6594,188.32,188.27,2.6599]
[1735622269176,2.6594,188.32,188.28,2.6598]
[1735622269381,3.1,188.33,188.21,12.2228049]
[1735622270182,2.6594,188.32,188.21,12.2228049]
[1735622270383,3.1,188.33,188.21,12.2228049]
[1735622271278,12.2228049,188.34,188.21,12.2228049]
[1735622271480,5.7988,188.36,188.32,2.6592]
[1735622271681,2.6588,188.36,188.32,2.6592]
[1735622272382,7.81123573,188.35,188.32,2.6592]
[1735622273185,7.81123573,188.35,188.29,1.598]
[1735622273476,7.81123573,188.3,188.2,7.81123573]
[1735622273681,7.81123573,188.27,188.2,7.81123573]
[1735622273882,10.47133573,188.27,188.22,2.6606]
[1735622274179,2.6601,188.27,188.22,2.6606]
[1735622275180,12.21713273,188.29,188.22,2.6606]
[1735622275383,2.6599,188.28,188.22,2.6606]
[1735622276185,2.6599,188.28,188.23,2.6606]
[1735622276381,12.21713273,188.29,188.23,2.6606]
[1735622276589,14.87693273,188.29,188.23,2.6606]
[1735622277084,2.6601,188.27,188.2,2.6609]
[1735622278384,14.87733273,188.26,188.2,2.6609]
[1735622278583,3.14,188.25,188.2,2.6609]
[1735622279888,3.14,188.25,188.21,2.6609]
[1735622282490,3.14,188.25,188.18,4.784]
[1735622282491,3.14,188.25,188.23,2.6606]
[1735622282690,3.14,188.25,188.18,4.784]
[1735622282991,12.21713273,188.26,188.18,4.784]
[1735622283188,15.35713273,188.26,188.18,4.784]
[1735622284587,15.35713273,188.26,188.22,2.6606]
[1735622285296,3.14,188.26,188.18,4.784]
[1735622285489,15.35713273,188.29,188.18,7.924]
[1735622286495,2.66,188.28,188.18,7.924]
[1735622286895,2.66,188.28,188.23,2.6606]
[1735622287298,2.66,188.28,188.18,7.924]
[1735622287491,12.21713273,188.32,188.19,12.21713273]
[1735622287893,3.14,188.31,188.19,12.21713273]
[1735622288301,12.21713273,188.32,188.19,12.21713273]
[1735622288497,3.14,188.34,188.22,12.21713273]
[1735622288690,7.16585692,188.37,188.25,12.21713273]
[1735622288894,7.16585692,188.37,188.32,2.6593]
[1735622289496,14.87563273,188.38,188.32,2.6593]
[1735622290292,12.21713273,188.41,188.28,12.21713273]
[1735622290498,12.21713273,188.41,188.26,7.845]
[1735622290499,12.21713273,188.41,188.31,12.21713273]
[1735622290697,19.38298965,188.44,188.39,2.6583]
[1735622291501,22.52298965,188.44,188.39,2.6583]
[1735622291702,15.35713273,188.44,188.39,2.6583]
[1735622292297,15.35713273,188.44,188.35,2.6588]
[1735622293203,12.21713273,188.41,188.31,3.14]
[1735622293396,2.6584,188.39,188.33,2.6591]
[1735622293594,3.14,188.39,188.28,12.21713273]
[1735622293798,12.21713273,188.38,188.28,12.21713273]
[1735622294203,2.6588,188.37,188.31,2.6594]
[1735622294400,2.6588,188.37,188.28,12.21713273]
[1735622294602,12.21713273,188.38,188.28,12.21713273]
[1735622294899,12.21713273,188.35,188.26,4.705]
[1735622295113,3.14,188.34,188.26,4.705]
[1735622295401,3.14,188.34,188.2,29.11073126]
[1735622295402,12.21713273,188.32,188.2,21.83304845]
[1735622295605,12.21713273,188.32,188.21,4.6977]
[1735622296505,2.6598,188.3,188.24,2.6603]
[1735622297007,12.21713273,188.32,188.21,4.6977]
[1735622297211,14.87663273,188.32,188.25,2.6602]
[1735622297400,12.21713273,188.32,188.25,2.6602]
[1735622297604,14.87693273,188.29,188.23,2.6605]
[1735622297808,18.05693273,188.29,188.23,2.6605]
[1735622298207,15.39713273,188.29,188.23,2.6605]
[1735622298503,2.6599,188.28,188.23,2.6605]
[1735622299207,15.39713273,188.29,188.24,2.6605]
[1735622300509,15.39713273,188.29,188.22,2.6606]
[1735622301512,2.66,188.28,188.22,2.6606]
[1735622303909,12.21713273,188.32,188.19,12.21713273]
[1735622304113,12.21713273,188.35,188.2,3.102]
[1735622304310,3.18,188.31,188.2,3.102]
[1735622304508,3.18,188.31,188.25,2.6602]
[1735622305117,3.18,188.31,188.26,2.6601]
[1735622305316,3.18,188.32,188.22,12.21713273]
[1735622306514,3.18,188.32,188.28,2.6598]
[1735622306916,2.6596,188.31,188.21,2.6608]
[1735622307216,2.6596,188.31,188.19,12.21713273]
[1735622308014,2.6596,188.3,188.25,2.6603]
[1735622308617,2.6598,188.29,188.24,2.6605]
[1735622309415,3.18,188.32,188.24,2.6605]
[1735622309812,12.21713273,188.29,188.21,2.6608]
[1735622310520,2.6602,188.26,188.21,2.6608]
[1735622310722,5.8402,188.26,188.21,2.6608]
[1735622312719,5.8402,188.26,188.22,2.6607]
[1735622313123,5.8402,188.26,188.17,1.5279]
[1735622313322,2.6604,188.25,188.2,2.6609]
[1735622313524,2.6604,188.25,188.17,1.5279]
[1735622314228,2.6604,188.25,188.19,7.81912208]
[1735622314520,2.6604,188.25,188.21,2.6609]
[1735622314919,13.65932208,188.26,188.21,2.6609]
[1735622315917,13.65932208,188.26,188.22,2.6608]
[1735622318921,10.99912208,188.26,188.19,7.81912208]
[1735622319118,10.99912208,188.26,188.23,2.6606]
[1735622319725,3.18,188.26,188.24,2.6604]
[1735622320422,7.81912208,188.25,188.22,2.6607]
[1735622320625,7.81912208,188.25,188.19,7.81912208]
[1735622320820,3.18,188.26,188.19,7.81912208]
[1735622321025,7.81912208,188.25,188.19,7.81912208]
[1735622321422,7.81912208,188.25,188.23,2.6606]
[1735622326929,11.15818782,188.35,188.23,7.81912208]
[1735622327121,7.81912208,188.31,188.23,7.81912208]
[1735622327325,7.81912208,188.31,188.28,2.6598]
[1735622327727,7.81912208,188.31,188.23,7.81912208]
[1735622328022,3.16,188.34,188.27,7.81912208]
[1735622328925,3.16,188.34,188.29,2.6598]
[1735622329132,7.81912208,188.33,188.25,9.29832208]
[1735622329428,7.81912208,188.29,188.25,2.6603]
[1735622329636,10.97912208,188.29,188.25,2.6603]
[1735622330134,10.97912208,188.29,188.23,2.6605]
[1735622330329,7.81912208,188.27,188.23,2.6605]
[1735622330529,3.16,188.29,188.23,2.6605]
[1735622330730,7.81912208,188.27,188.23,2.6605]
[1735622331437,7.81912208,188.27,188.2,7.81912208]
[1735622331630,10.47932208,188.27,188.2,7.81912208]
[1735622332637,10.47932208,188.27,188.23,2.6606]
[1735622332831,7.16585692,188.33,188.2,7.81912208]
[1735622333034,7.81912208,188.28,188.2,7.81912208]
[1735622333233,7.81912208,188.28,188.23,2.6605]
[1735622333435,10.97912208,188.28,188.23,2.6605]
[1735622334837,10.97912208,188.28,188.2,7.81912208]
[1735622335034,10.97912208,188.28,188.24,2.6605]
[1735622335238,7.81912208,188.28,188.22,7.81912208]
[1735622335436,10.47932208,188.26,188.16,1.4792]
[1735622335639,7.81912208,188.26,188.19,7.81912208]
[1735622336640,7.81912208,188.26,188.22,2.6607]
[1735622336944,7.81912208,188.26,188.19,7.81912208]
[1735622337732,7.81912208,188.28,188.19,7.81912208]
[1735622338042,7.81912208,188.28,188.21,7.81912208]
[1735622338441,7.81912208,188.31,188.23,7.81912208]
[1735622338737,10.97912208,188.31,188.25,7.81912208]
[1735622339043,5.8191,188.34,188.25,7.81912208]
[1735622339238,5.8191,188.34,188.26,1.5613]
[1735622339239,7.81912208,188.33,188.26,1.5613]
[1735622339638,7.81912208,188.33,188.27,7.81912208]
[1735622340442,10.97912208,188.35,188.31,2.6594]
[1735622340643,10.97912208,188.35,188.27,7.81912208]
[1735622340945,13.63812208,188.35,188.3,2.6596]
[1735622341144,7.81912208,188.33,188.3,2.6596]
[1735622341341,7.81912208,188.33,188.26,4.5483]
[1735622341946,7.81912208,188.31,188.27,2.6599]
[1735622342742,7.81912208,188.31,188.26,3.0412]
[1735622342937,7.81912208,188.29,188.21,9.36462208]
[1735622343137,7.81912208,188.27,188.21,9.36462208]
[1735622343440,10.47912208,188.27,188.22,2.6607]
[1735622344537,7.81912208,188.27,188.23,2.6605]
[1735622345547,10.47912208,188.27,188.23,2.6605]
[1735622347349,7.81912208,188.25,188.18,7.81912208]
[1735622347946,7.81912208,188.25,188.22,2.6606]
[1735622349150,2.6602,188.26,188.22,2.6606]
[1735622349352,7.81912208,188.25,188.22,2.6606]
[1735622350051,7.81912208,188.25,188.18,7.81912208]
[1735622350251,7.81912208,188.25,188.21,2.6606]
[1735622350453,2.6601,188.26,188.21,2.6606]
[1735622350657,3.16,188.26,188.18,7.81912208]
[1735622351041,3.16,188.26,188.2,7.81912208]
[1735622351247,3.16,188.26,188.23,2.6603]
[1735622351852,1.4937,188.33,188.2,7.81912208]
[1735622352159,7.81912208,188.32,188.24,7.81912208]
[1735622352759,7.81912208,188.32,188.26,7.81912208]
[1735622352960,3.16,188.35,188.26,7.81912208]
[1735622353161,7.81912208,188.34,188.26,7.81912208]
[1735622353656,7.81912208,188.34,188.28,2.6596]
[1735622353956,7.81912208,188.34,188.26,7.81912208]
[1735622354659,10.47802208,188.34,188.29,2.6594]
[1735622355164,7.81912208,188.32,188.21,4.6706]
[1735622355374,7.81912208,188.3,188.23,7.81912208]
[1735622355960,7.81912208,188.3,188.26,2.6598]
[1735622356158,7.81912208,188.32,188.23,7.81912208]
[1735622357056,10.47832208,188.32,188.25,2.66]
[1735622357259,7.81912208,188.32,188.23,7.81912208]
[1735622358063,2.6593,188.31,188.23,7.81912208]
[1735622358550,7.81912208,188.32,188.23,7.81912208]
[1735622358751,7.81912208,188.32,188.28,2.6596]
[1735622359757,7.81912208,188.32,188.23,7.81912208]
[1735622359956,7.81912208,188.32,188.29,2.6595]
[1735622364960,7.81912208,188.32,188.28,2.6597]
[1735622365664,7.81912208,188.32,188.24,7.81912208]
[1735622365963,7.81912208,188.3,188.22,11.01912208]
[1735622366763,7.81912208,188.27,188.21,4.6706]
[1735622367061,7.81912208,188.25,188.21,4.6706]
[1735622367465,7.81912208,188.25,188.21,7.3311]
[1735622368469,7.81912208,188.25,188.21,4.6706]
[1735622368664,7.81912208,188.25,188.22,2.6605]
[1735622369764,7.81912208,188.25,188.21,4.6706]
[1735622369958,3.2,188.29,188.21,4.6706]
[1735622370160,7.81912208,188.28,188.21,12.48972208]
[1735622370362,7.81912208,188.28,188.23,2.6604]
[1735622370557,7.81912208,188.26,188.21,4.6706]
[1735622370962,5.8596,188.29,188.24,2.6601]
[1735622371161,7.81912208,188.28,188.24,2.6601]
[1735622371565,10.47882208,188.28,188.24,2.6601]
[1735622372165,3.2,188.29,188.21,4.6706]
[1735622372366,7.81912208,188.26,188.21,4.6706]
[1735622374561,7.81912208,188.26,188.23,2.6604]
[1735622374765,7.81912208,188.24,188.13,3.2]
[1735622374966,7.81912208,188.24,188.17,7.81912208]
[1735622376464,7.81912208,188.24,188.2,2.6607]
[1735622378963,7.81912208,188.24,188.21,2.6606]
[1735622379261,11.01912208,188.28,188.2,7.81912208]
[1735622379469,11.01912208,188.29,188.22,7.81912208]
[1735622379762,7.81912208,188.29,188.22,7.81912208]
[1735622380169,11.01912208,188.32,188.29,2.6595]
[1735622380567,3.2,188.32,188.29,2.6595]
[1735622381564,7.81912208,188.31,188.28,2.6597]
[1735622386769,7.81912208,188.31,188.24,7.81912208]
[1735622386770,2.6588,188.35,188.31,2.6592]
[1735622386975,7.81912208,188.36,188.28,7.81912208]
[1735622387673,7.81912208,188.36,188.33,2.6589]
[1735622388171,7.81912208,188.36,188.3,7.81912208]
[1735622388974,7.81912208,188.36,188.34,2.6587]
[1735622390475,2.6582,188.39,188.34,2.6587]
[1735622390677,7.81912208,188.38,188.34,2.6587]
[1735622391473,7.81912208,188.38,188.36,2.6585]
[1735622391675,7.81912208,188.38,188.3,7.81912208]
[1735622391976,7.81912208,188.36,188.29,4.7487]
[1735622392877,10.47782208,188.36,188.29,4.7487]
[1735622393579,10.47782208,188.36,188.31,2.6592]
[1735622396478,7.81912208,188.34,188.31,2.6592]
[1735622398179,7.81912208,188.34,188.29,1.5612]
[1735622398380,7.81912208,188.32,188.24,3.16]
[1735622398570,7.81912208,188.32,188.24,10.97912208]
[1735622398970,10.47832208,188.32,188.27,2.6598]
[1735622399780,10.47832208,188.32,188.28,2.6597]
[1735622403081,7.81912208,188.3,188.21,1.5779]
[1735622403381,7.81912208,188.3,188.22,7.81912208]
[1735622403582,7.81912208,188.28,188.22,7.81912208]
[1735622403783,10.47882208,188.28,188.21,1.5779]
[1735622404087,7.81912208,188.26,188.21,1.5779]
[1735622404584,10.47912208,188.26,188.22,2.6604]
[1735622404784,7.81912208,188.24,188.18,7.81912208]